fUST/lending_fUST_20250924
["ID","MTS","AMOUNT","RATE_DAILY","PERIOD"]
[387291013,1758680846159,-155.132996,0.0002737,7]
[387291014,1758680846180,-1000.0,0.0002738,5]
[387291015,1758680846200,-1064.7017609,0.0002738,5]
[387291016,1758680850767,906.07271793,0.00029182,120]
[387291020,1758680872634,155.12664612,0.000259,120]
[387291036,1758680928753,10029.5886475,0.00029183,120]
[387291047,1758681032215,-400.7253555,0.000199,2]
[387291050,1758681032229,-400.72535547,0.00020972,2]
[387291051,1758681032239,-159.72,0.00022,2]
[387291054,1758681032252,-398.70801338,0.00022044,2]
[387291056,1758681032264,-2.01734209,0.00022044,2]
[387291058,1758681032273,-159.72,0.00023,2]
[387291060,1758681032283,-400.72535547,0.00023116,2]
[387291062,1758681032292,-206.74896689,0.00023647,2]
[387291064,1758681032304,-26.87274125,0.00023647,2]
[387291066,1758681032313,-532.2324375,0.00023647,2]
[387291068,1758681032323,-160.0,0.00023647,2]
[387291070,1758681032333,-160.0,0.00023647,2]
[387291072,1758681032343,-153.51190998,0.00023769,2]
[387291074,1758681032355,-1410.59809002,0.00023769,2]
[387291076,1758681032364,-159.72,0.00023796,2]
[387291078,1758681032374,-2010.4823183,0.000238,2]
[387291080,1758681032384,-321.08286703,0.00023805,2]
[387291082,1758681032393,-400.72535547,0.00024187,2]
[387291084,1758681032403,-159.72,0.00024694,2]
[387291086,1758681032413,-480.0,0.00024899,2]
[387291088,1758681032423,-300.0,0.00024989,2]
[387291091,1758681032434,-1096.46,0.0002499,10]
[387291092,1758681032444,-8694.47969726,0.00025,3]
[387291094,1758681032455,-2038.41136532,0.00025,3]
[387291095,1758681032465,-27319.45935897,0.00025,15]
[387291111,1758681032673,-10507.490764,0.00025,15]
[387291425,1758681040231,-233.62170814,0.00023568,2]
[387291428,1758681040245,-268.22452812,0.0002499,10]
[387291528,1758681041292,-645.49547188,0.0002499,10]
[387291529,1758681041303,-500.0,0.00024999,2]
[387291530,1758681041313,-352.61005534,0.00024999,2]
[387291531,1758681041325,-500.0,0.00024999,2]
[387291532,1758681041336,-12312.58605778,0.00025,15]
[387291533,1758681041408,-3829.63888868,0.00025,15]
[387291688,1758681043218,-343.67951786,0.0002499,10]
[387291699,1758681043327,-417.75048214,0.0002499,10]
[387291701,1758681043339,-8616.27219121,0.00025,15]
[387291703,1758681043350,-8637.02338404,0.00025,7]
[387291705,1758681043361,-17685.39284032,0.00025,2]
[387291707,1758681043372,-2641.06267489,0.00025,2]
[387291710,1758681043383,-49099.42285994,0.00025,2]
[387291712,1758681043395,-10364.0,0.00025,2]
[387291714,1758681043406,-361.36760039,0.00025,2]
[387291716,1758681043417,-150.0,0.00025,2]
[387291718,1758681043429,-500.0,0.00025,2]
[387291731,1758681043560,-532.2324375,0.00025,3]
[387291733,1758681043572,-600.0,0.00025,2]
[387291735,1758681043582,-1424.2007172,0.00025,2]
[387291737,1758681043592,-233.62170814,0.00025,3]
[387291739,1758681043604,-480.0,0.00025173,2]
[387291741,1758681043613,-1290.51,0.00025241,2]
[387291743,1758681043624,-400.72535547,0.00025259,3]
[387291744,1758681043634,-480.0,0.00025447,2]
[387291746,1758681043643,-389.73808715,0.00025469,3]
[387291748,1758681043652,-1000.0,0.000255,2]
[387291750,1758681043661,-159.72,0.00025592,7]
[387291752,1758681043671,-480.0,0.00025721,2]
[387291754,1758681043680,-168.0,0.00025751,2]
[387291756,1758681043690,-17841.63559939,0.000258,2]
[387291758,1758681043700,-480.0,0.00025995,2]
[387291760,1758681043710,-523.06627354,0.00026,2]
[387291762,1758681043719,-1704.6449488,0.00026,30]
[387291764,1758681043729,-480.0,0.00026269,2]
[387291766,1758681043738,-400.72535547,0.00026331,5]
[387291768,1758681043748,-159.72,0.00026489,7]
[387291770,1758681043757,-480.0,0.00026543,2]
[387291772,1758681043766,-398.41201645,0.00026817,2]
[387291774,1758681043776,-34652.58370885,0.00027,14]
[387291776,1758681043785,-168.0,0.00027019,2]
[387291777,1758681043795,-420.0,0.00027072,2]
[387291779,1758681043804,-1290.51,0.00027159,4]
[387291781,1758681043814,-168.0,0.00027198,2]
[387291783,1758681043823,-92.7308421,0.0002738,5]
[387291785,1758681043833,-159.72,0.00027387,7]
[387291787,1758681043842,-168.0,0.00027389,2]
[387291789,1758681043852,-400.0,0.0002739,7]
[387291791,1758681043861,-174.20545468,0.00027397,2]
[387291793,1758681043871,-254.70101729,0.00027397,5]
[387291795,1758681043880,-500.0,0.00027398,2]
[387291797,1758681043890,-151.63352746,0.00027398,2]
[387291799,1758681043899,-151.55693333,0.00027398,2]
[387291801,1758681043909,-151.45523714,0.00027398,2]
[387291803,1758681043918,-151.86101319,0.00027398,2]
[387291805,1758681043927,-151.33928433,0.00027398,2]
[387291807,1758681043936,-152.03295807,0.00027398,2]
[387291809,1758681043946,-151.0,0.00027398,2]
[387291810,1758681043955,-500.0,0.00027398,2]
[387291813,1758681043965,-151.0,0.00027398,2]
[387291814,1758681043974,-1000.0,0.000274,5]
[387291816,1758681043983,-1000.0,0.000274,5]
[387291818,1758681043993,-400.72535547,0.00027403,7]
[387291820,1758681044003,-152.0,0.00027421,15]
[387291822,1758681044012,-501.48622717,0.00027444,10]
[387291824,1758681044021,-168.0,0.00027446,2]
[387291826,1758681044031,-233.62170814,0.00027496,7]
[387291828,1758681044040,-532.2324375,0.00027496,7]
[387291830,1758681044050,-200.61111507,0.00027496,7]
[387291832,1758681044060,-45354.07272877,0.000275,2]
[387291834,1758681044069,-152.0,0.00027521,15]
[387291836,1758681044079,-168.0,0.00027618,2]
[387291838,1758681044090,-152.0,0.00027621,15]
[387291840,1758681044099,-168.0,0.00027636,2]
[387291841,1758681044109,-500.0,0.00027672,2]
[387291843,1758681044119,-151.0,0.00027672,2]
[387291846,1758681044129,-500.0,0.00027672,2]
[387291848,1758681044140,-151.0,0.00027672,2]
[387291850,1758681044150,-800.0,0.00027696,2]
[387291852,1758681044159,-152.0,0.00027721,15]
[387291854,1758681044169,-168.0,0.0002773,2]
[387291856,1758681044179,-300.0,0.00027733,5]
[387291858,1758681044189,-800.0,0.00027764,2]
[387291859,1758681044198,-287.40017996,0.00027764,2]
[387291862,1758681044208,-441.0,0.00027764,2]
[387291863,1758681044218,-152.56527997,0.00027764,2]
[387291865,1758681044227,-152.50391953,0.00027764,2]
[387291867,1758681044237,-500.0,0.00027764,2]
[387291869,1758681044246,-230.64153186,0.00027764,2]
[387291871,1758681044256,-151.0,0.00027764,2]
[387291872,1758681044265,-151.0,0.00027764,2]
[387291873,1758681044275,-168.0,0.00027795,2]
[387291874,1758681044285,-152.0,0.00027821,15]
[387291875,1758681044294,-168.0,0.00027826,2]
[387291876,1758681044304,-603.13420665,0.0002784,2]
[387291877,1758681044313,-168.0,0.00027907,2]
[387291878,1758681044323,-152.0,0.00027921,15]
[387291879,1758681044334,-600.0,0.00027945,20]
[387291880,1758681044343,-351.64503339,0.00027946,2]
[387291881,1758681044353,-200.60660221,0.00027946,2]
[387291882,1758681044363,-500.0,0.00027946,2]
[387291883,1758681044373,-151.0,0.00027946,2]
[387291884,1758681044383,-800.0,0.00027947,2]
[387291885,1758681044392,-208.0,0.0002796,20]
[387291886,1758681044403,-600.29121868,0.00028,2]
[387291887,1758681044412,-195.23742533,0.00028,2]
[387291888,1758681044422,-512.09182609,0.00028,7]
[387291889,1758681044432,-1113.59,0.00028,2]
[387291891,1758681044443,-152.0,0.00028021,15]
[387291893,1758681044453,-354.0,0.00028033,2]
[387291896,1758681044463,-441.0,0.00028038,2]
[387291897,1758681044472,-500.0,0.00028038,2]
[387291900,1758681044482,-151.0,0.00028038,2]
[387291902,1758681044491,-151.0,0.00028038,2]
[387291904,1758681044501,-152.0,0.00028121,15]
[387291906,1758681044510,-220.5012543,0.00028124,2]
[387291908,1758681044519,-464.15724045,0.00028129,2]
[387291910,1758681044527,-1113.59,0.0002814,2]
[387291912,1758681044537,-800.0,0.00028179,2]
[387291913,1758681044548,-151.0,0.000282,120]
[387291915,1758681044558,-456.7,0.00028219,14]
[387291917,1758681044567,-551.06592234,0.0002822,2]
[387291919,1758681044577,-212.83625781,0.0002822,2]
[387291921,1758681044587,-152.0,0.00028221,15]
[387291923,1758681044597,-168.0,0.00028255,2]
[387291925,1758681044606,-450.0,0.00028281,5]
[387291927,1758681044616,-159.72,0.00028285,30]
[387291929,1758681044627,-441.0,0.00028312,2]
[387291931,1758681044636,-500.0,0.00028312,2]
[387291933,1758681044646,-151.0,0.00028312,2]
[387291935,1758681044655,-301.67561036,0.00028312,2]
[387291937,1758681044664,-152.0,0.00028321,15]
[387291939,1758681044674,-152.08930749,0.00028421,15]
[387291942,1758681044683,-800.0,0.00028434,2]
[387291944,1758681044693,-400.72535547,0.00028475,9]
[387291946,1758681044702,-1595.89977196,0.000285,7]
[387291948,1758681044712,-263.42931114,0.00028504,2]
[387291950,1758681044721,-800.0,0.00028518,2]
[387291952,1758681044731,-800.0,0.00028536,2]
[387291954,1758681044740,-441.0,0.00028586,2]
[387291956,1758681044749,-500.0,0.00028586,2]
[387291958,1758681044759,-151.0,0.00028586,2]
[387291960,1758681044768,-410.0,0.00028682,2]
[387291962,1758681044778,-800.0,0.00028749,2]
[387291964,1758681044787,-800.0,0.00028757,2]
[387291966,1758681044797,-800.0,0.00028791,2]
[387291968,1758681044807,-175.173406,0.000288,7]
[387291970,1758681044818,-168.99642743,0.000288,7]
[387291972,1758681044827,-600.0,0.00028829,5]
[387291974,1758681044837,-441.0,0.0002886,2]
[387291976,1758681044847,-500.0,0.0002886,2]
[387291978,1758681044856,-246.78225834,0.0002886,2]
[387291980,1758681044865,-800.0,0.00028903,2]
[387291982,1758681044875,-456.7,0.00028904,15]
[387291984,1758681044884,-800.0,0.00028917,2]
[387291986,1758681044894,-800.0,0.0002895,2]
[387291988,1758681044903,-11658.42680543,0.00028989,2]
[387291990,1758681044912,-84582.72624101,0.0002899,2]
[387291992,1758681044924,-46570.82629456,0.0002899,2]
[387291994,1758681044935,-920.0,0.0002899,2]
[387292231,1758681047149,-17856.80913,0.0002899,2]
[387292237,1758681047200,-1544.2,0.0002033,2]
[387292239,1758681047210,-651.82330469,0.00022179,2]
[387292247,1758681047279,-2436.57669531,0.00022179,2]
[387292249,1758681047288,-22.88195169,0.00024899,2]
[387292357,1758681048385,-457.11804831,0.00024899,2]
[387292359,1758681048395,-330.55979276,0.00025173,2]
[387292361,1758681048404,-168.0,0.00027838,2]
[387292363,1758681048414,-138889.52483143,0.0002899,2]
[387292365,1758681048425,-469.62195069,0.0002899,2]
[387292367,1758681048436,-161.619583,0.0002899,7]
[387292369,1758681048446,-161.619583,0.0002899,7]
[387292371,1758681048455,-161.619583,0.0002899,7]
[387292373,1758681048464,-161.619583,0.0002899,7]
[387292375,1758681048474,-114195.78052893,0.00029,14]
[387292377,1758681048484,-13000.0,0.00029,2]
[387292379,1758681048494,-10815.93998,0.00029,4]
[387292381,1758681048504,-150.0,0.00029,5]
[387292383,1758681048513,-233.58652103,0.00029,10]
[387292384,1758681048523,-233.58652103,0.00029,10]
[387292386,1758681048533,-160.0,0.00029,10]
[387292388,1758681048542,-160.0,0.00029,10]
[387292390,1758681048556,-151.0,0.00029,7]
[387292392,1758681048566,-154.112584,0.00029,7]
[387292394,1758681048575,-175.173406,0.00029,14]
[387292396,1758681048585,-878.76578892,0.00029,2]
[387292398,1758681048595,-156.0,0.00029,60]
[387292400,1758681048605,-209.0,0.00029,2]
[387292402,1758681048614,-161.619583,0.00029,7]
[387292404,1758681048625,-161.619583,0.00029,7]
[387292409,1758681048672,-161.619583,0.00029,7]
[387292411,1758681048682,-161.619583,0.00029,7]
[387292413,1758681048693,-351.67550142,0.00029009,7]
[387292415,1758681048703,-3833.95,0.00029009,2]
[387292417,1758681048712,-2700.0,0.0002901,7]
[387292419,1758681048722,-1814.55271276,0.00029037,22]
[387292421,1758681048731,-1290.51,0.00029077,6]
[387292423,1758681048741,-11087.24231281,0.00029083,2]
[387292425,1758681048751,-150.01,0.00029087,15]
[387292427,1758681048760,-1500.63987759,0.0002911,2]
[387292429,1758681048770,-166.73611484,0.00029113,60]
[387292431,1758681048779,-441.0,0.00029134,2]
[387292433,1758681048788,-500.0,0.00029134,2]
[387292435,1758681048798,-192.93927548,0.0002914,2]
[387292437,1758681048808,-1929.3417694,0.00029144,2]
[387292439,1758681048818,-3000.0,0.00029154,61]
[387292441,1758681048828,-905.0,0.00029166,120]
[387292443,1758681048839,-150.0,0.00029173,5]
[387292444,1758681048848,-280.75604204,0.00029174,2]
[387292446,1758681048857,-151.0,0.00029174,7]
[387292448,1758681048866,-151.0,0.00029174,7]
[387292450,1758681048877,-151.0,0.00029174,7]
[387292452,1758681048888,-245.0,0.00029174,7]
[387292454,1758681048897,-170.0,0.00029182,2]
[387292456,1758681048907,-182.93091232,0.00029182,2]
[387292458,1758681048917,-315.37891358,0.00029183,2]
[387292459,1758681048926,-10000.0,0.00029183,2]
[387292460,1758681048937,-166.59378657,0.00029183,2]
[387292461,1758681048947,-2963.0429555,0.00029183,7]
[387292462,1758681048956,-176.16866943,0.00029183,7]
[387292463,1758681048965,-91207.89919534,0.00029183,2]
[387292464,1758681048974,-225.03987877,0.00029183,15]
[387292465,1758681048985,-300.0,0.00029183,2]
[387292466,1758681048995,-3879.14773656,0.00029183,2]
[387292467,1758681049004,-809.21437645,0.00029183,2]
[387292468,1758681049013,-258.04535615,0.00029183,2]
[387292469,1758681049023,-239.82583928,0.00029183,10]
[387292470,1758681049032,-296.69851259,0.00029183,2]
[387292471,1758681049042,-326.8112407,0.00029183,2]
[387292472,1758681049052,-291.67123352,0.00029183,2]
[387292473,1758681049061,-194.39527548,0.00029183,12]
[387292474,1758681049070,-51706.02396868,0.00029183,2]
[387292475,1758681049080,-636.85195928,0.00029183,2]
[387292476,1758681049090,-1361.00899056,0.00029183,2]
[387292477,1758681049100,-156.52421826,0.00029183,2]
[387292478,1758681049109,-49082.86721079,0.00029183,2]
[387292479,1758681049120,-6290.04524499,0.00029183,2]
[387292480,1758681049131,-1092.95776003,0.00029183,10]
[387292481,1758681049141,-157.53350423,0.00029183,2]
[387292482,1758681049150,-1715.86380839,0.00029183,2]
[387292483,1758681049161,-7223.89728102,0.00029183,5]
[387292484,1758681049170,-2074.64485764,0.00029183,2]
[387292485,1758681049179,-192.3070715,0.00029183,2]
[387292486,1758681049189,-200.0,0.00029183,10]
[387292487,1758681049198,-10567.39738427,0.00029183,7]
[387292488,1758681049207,-507.2779165,0.00029183,2]
[387292490,1758681049217,-179.19028858,0.00029183,2]
[387292491,1758681049227,-467.57036958,0.00029183,2]
[387292493,1758681049237,-498.0,0.00029183,7]
[387292495,1758681049247,-907.51767535,0.00029183,14]
[387292497,1758681049257,-30435.59284919,0.00029183,2]
[387292499,1758681049267,-189.05486315,0.00029183,2]
[387292501,1758681049277,-1396.02701973,0.00029183,2]
[387292503,1758681049287,-5890.99323482,0.00029183,2]
[387292505,1758681049297,-10678.48447479,0.00029183,2]
[387292507,1758681049306,-650.79683304,0.00029183,2]
[387292509,1758681049316,-1536.90008907,0.00029183,14]
[387292511,1758681049325,-154.00781745,0.00029183,7]
[387292513,1758681049335,-2920.0,0.00029183,2]
[387292515,1758681049344,-10212.01819711,0.00029183,2]
[387292517,1758681049353,-810.95276465,0.00029183,15]
[387292519,1758681049363,-163.20378254,0.00029183,2]
[387292521,1758681049373,-384.83008824,0.00029183,2]
[387292523,1758681049383,-201.33502044,0.00029183,2]
[387292525,1758681049392,-1516.99746654,0.00029183,15]
[387292527,1758681049402,-214.49715402,0.00029183,2]
[387292529,1758681049412,-3146.0730759,0.00029183,2]
[387292531,1758681049422,-2511.42526135,0.00029183,7]
[387292533,1758681049431,-100201.29529745,0.00029183,2]
[387292535,1758681049441,-150.24593184,0.00029183,2]
[387292536,1758681049452,-7150.80791148,0.00029183,15]
[387292538,1758681049462,-258.37341305,0.00029183,2]
[387292540,1758681049471,-3764.13031054,0.00029183,2]
[387292542,1758681049482,-1015.04237139,0.00029183,10]
[387292544,1758681049491,-33154.06988378,0.00029183,14]
[387292546,1758681049500,-859.14,0.00029183,15]
[387292548,1758681049510,-1005.0423841,0.00029183,7]
[387292550,1758681049520,-1442.85371672,0.00029183,2]
[387292552,1758681049529,-25002.82558253,0.00029183,2]
[387292554,1758681049539,-40003.8244951,0.00029183,2]
[387292556,1758681049550,-150.0,0.00029183,10]
[387292558,1758681049561,-150.0,0.00029183,2]
[387292560,1758681049571,-6793.0,0.00029183,7]
[387292562,1758681049581,-2585.54826938,0.00029183,2]
[387292564,1758681049591,-1864.68698812,0.00029183,2]
[387292566,1758681049603,-216.18655307,0.00029183,7]
[387292568,1758681049614,-247.35664031,0.00029183,30]
[387292570,1758681049624,-677.87120224,0.00029183,30]
[387292572,1758681049635,-520.37596769,0.00029183,30]
[387292574,1758681049646,-515.94755667,0.00029183,30]
[387292576,1758681049656,-179.56301946,0.00029183,30]
[387292578,1758681049666,-627.94132301,0.00029183,30]
[387292580,1758681049676,-343.69985202,0.00029183,30]
[387292582,1758681049686,-209330.6238681,0.00029183,20]
[387296672,1758681932490,509.87269,0.00029177,120]
[387296966,1758682240221,-480.0,0.00019451,2]
[387296968,1758682240232,-480.0,0.00019451,2]
[387296970,1758682240241,-480.0,0.00019725,2]
[387296972,1758682240250,-94.7140493,0.00019725,2]
[387296974,1758682240262,-385.2859507,0.00019725,2]
[387296977,1758682240271,-278.76808474,0.000199,2]
[387296979,1758682240281,-480.0,0.00019999,2]
[387296981,1758682240290,-410.5682154,0.00019999,2]
[387296983,1758682240300,-480.0,0.00020273,2]
[387296985,1758682240309,-1485.24,0.00020434,2]
[387296987,1758682240319,-480.0,0.00020546,2]
[387296989,1758682240328,-480.0,0.00020546,2]
[387296991,1758682240337,-480.0,0.00020547,2]
[387296993,1758682240347,-480.0,0.0002082,2]
[387296995,1758682240356,-480.0,0.0002082,2]
[387296996,1758682240365,-480.0,0.00020821,2]
[387296997,1758682240375,-300.0,0.00020971,2]
[387296998,1758682240390,-278.76808453,0.00020972,2]
[387296999,1758682240403,-480.0,0.00021094,2]
[387297000,1758682240412,-515.93733372,0.00021094,2]
[387297001,1758682240425,-480.0,0.00021095,2]
[387297002,1758682240435,-480.0,0.00021368,2]
[387297003,1758682240444,-480.0,0.00021369,2]
[387297004,1758682240453,-532.2324375,0.00021518,2]
[387297005,1758682240462,-233.62170814,0.00021518,2]
[387297006,1758682240471,-480.0,0.00021642,2]
[387297007,1758682240481,-480.0,0.00021643,2]
[387297008,1758682240490,-480.0,0.00021916,2]
[387297009,1758682240499,-480.0,0.00021917,2]
[387297010,1758682240509,-278.76808453,0.00022044,2]
[387297011,1758682240519,-480.0,0.0002219,2]
[387297012,1758682240528,-480.0,0.00022191,2]
[387297013,1758682240537,-2970.48,0.00022291,2]
[387297014,1758682240547,-480.0,0.00022464,2]
[387297015,1758682240556,-480.0,0.00022465,2]
[387297016,1758682240566,-431.30142981,0.00022738,2]
[387297018,1758682240576,-480.0,0.00022739,2]
[387297020,1758682240587,-480.0,0.00022811,2]
[387297022,1758682240596,-420.0,0.00022812,2]
[387297024,1758682240605,-666.66666667,0.0002298,2]
[387297026,1758682240614,-152.54358257,0.0002298,2]
[387297028,1758682240623,-480.0,0.00023013,2]
[387297030,1758682240638,-160.0,0.0002305,2]
[387297032,1758682240647,-480.0,0.00023077,2]
[387297034,1758682240656,-981.78,0.00023078,2]
[387297036,1758682240665,-2168.514,0.00023078,2]
[387297038,1758682240674,-636.798,0.00023078,2]
[387297040,1758682240684,-480.0,0.00023085,2]
[387297042,1758682240693,-278.76808453,0.00023116,2]
[387297044,1758682240702,-420.96274551,0.00023117,2]
[387297046,1758682240711,-480.0,0.00023117,2]
[387297048,1758682240720,-480.0,0.00023117,2]
[387297049,1758682240730,-480.0,0.00023117,2]
[387297052,1758682240740,-666.66666667,0.00023118,2]
[387297054,1758682240749,-666.66666667,0.00023118,2]
[387297056,1758682240759,-666.66666667,0.00023118,2]
[387297058,1758682240769,-666.66666667,0.00023118,2]
[387297059,1758682240778,-666.66666667,0.00023256,2]
[387297061,1758682240788,-666.66666667,0.00023256,2]
[387297063,1758682240799,-666.66666667,0.00023256,2]
[387297065,1758682240811,-666.66666667,0.00023256,2]
[387297067,1758682240822,-480.0,0.00023287,2]
[387297069,1758682240832,-480.0,0.0002335,2]
[387297071,1758682240843,-480.0,0.0002335,2]
[387297073,1758682240854,-480.0,0.0002335,2]
[387297075,1758682240865,-480.0,0.0002335,2]
[387297078,1758682240875,-480.0,0.00023351,2]
[387297079,1758682240896,-480.0,0.00023359,2]
[387297082,1758682240907,-480.0,0.00023391,2]
[387297083,1758682240917,-480.0,0.00023391,2]
[387297085,1758682240928,-480.0,0.00023391,2]
[387297087,1758682240939,-666.66666667,0.00023394,7]
[387297090,1758682240949,-666.66666667,0.00023394,7]
[387297091,1758682240959,-666.66666667,0.00023394,7]
[387297093,1758682240969,-666.66666667,0.00023532,7]
[387297096,1758682240981,-666.66666667,0.00023532,7]
[387297097,1758682240990,-666.66666667,0.00023532,7]
[387297099,1758682241001,-666.66666667,0.00023532,7]
[387297101,1758682241011,-480.0,0.00023561,2]
[387297104,1758682241021,-367.37087652,0.00023598,2]
[387297105,1758682241031,-480.0,0.00023624,2]
[387297106,1758682241040,-480.0,0.00023624,2]
[387297107,1758682241049,-480.0,0.00023624,2]
[387297108,1758682241059,-480.0,0.00023624,2]
[387297109,1758682241068,-622.63383947,0.00023625,2]
[387297110,1758682241077,-480.0,0.00023633,2]
[387297111,1758682241086,-480.0,0.00023665,2]
[387297112,1758682241096,-480.0,0.00023665,2]
[387297113,1758682241106,-480.0,0.00023665,2]
[387297114,1758682241115,-666.66666667,0.00023671,7]
[387297115,1758682241124,-666.66666667,0.00023671,7]
[387297116,1758682241142,-666.66666667,0.00023809,14]
[387297117,1758682241151,-480.0,0.00023835,2]
[387297118,1758682241161,-480.0,0.00023898,2]
[387297119,1758682241170,-480.0,0.00023898,2]
[387297120,1758682241179,-480.0,0.00023898,2]
[387297121,1758682241188,-591.24080245,0.00023898,2]
[387297122,1758682241197,-480.0,0.00023907,2]
[387297123,1758682241206,-480.0,0.00023939,2]
[387297124,1758682241216,-181.02,0.00023939,2]
[387297125,1758682241225,-480.0,0.00023939,2]
[387297126,1758682241234,-666.66666667,0.00023947,14]
[387297127,1758682241244,-666.66666667,0.00023947,14]
[387297128,1758682241253,-666.66666667,0.00023947,14]
[387297129,1758682241263,-152.54358257,0.00023947,7]
[387297130,1758682241272,-480.0,0.00024043,2]
[387297131,1758682241282,-666.66666667,0.00024085,14]
[387297132,1758682241291,-666.66666667,0.00024085,14]
[387297133,1758682241302,-666.66666667,0.00024085,14]
[387297134,1758682241311,-344.07077165,0.00024109,2]
[387297135,1758682241320,-4455.72,0.00024149,2]
[387297136,1758682241329,-480.0,0.00024172,2]
[387297137,1758682241338,-480.0,0.00024172,2]
[387297138,1758682241347,-480.0,0.00024172,2]
[387297139,1758682241356,-480.0,0.00024181,2]
[387297140,1758682241366,-278.76808453,0.00024187,2]
[387297141,1758682241375,-480.0,0.00024213,2]
[387297142,1758682241391,-480.0,0.00024213,2]
[387297144,1758682241401,-666.66666667,0.00024224,21]
[387297146,1758682241410,-666.66666667,0.00024224,21]
[387297148,1758682241419,-666.66666667,0.00024224,21]
[387297150,1758682241431,-666.66666667,0.00024224,21]
[387297151,1758682241440,-480.0,0.00024317,2]
[387297153,1758682241449,-666.66666667,0.00024362,21]
[387297155,1758682241459,-666.66666667,0.00024362,21]
[387297157,1758682241469,-628.7178156,0.00024446,2]
[387297159,1758682241479,-480.0,0.00024446,2]
[387297162,1758682241489,-480.0,0.00024446,2]
[387297163,1758682241499,-480.0,0.00024455,2]
[387297165,1758682241508,-480.0,0.00024487,2]
[387297167,1758682241518,-480.0,0.00024487,2]
[387297169,1758682241527,-666.66666667,0.000245,21]
[387297171,1758682241536,-666.66666667,0.000245,21]
[387297173,1758682241545,-666.66666667,0.000245,21]
[387297175,1758682241554,-480.0,0.00024591,2]
[387297177,1758682241564,-666.66666667,0.00024638,30]
[387297179,1758682241573,-179.409,0.00024715,7]
[387297181,1758682241582,-480.0,0.0002472,2]
[387297183,1758682241594,-480.0,0.0002472,2]
[387297185,1758682241603,-480.0,0.00024761,2]
[387297187,1758682241613,-480.0,0.00024761,2]
[387297189,1758682241622,-666.66666667,0.00024776,30]
[387297191,1758682241638,-587.0,0.00024815,2]
[387297193,1758682241648,-480.0,0.00024865,2]
[387297195,1758682241657,-666.66666667,0.00024915,30]
[387297197,1758682241666,-152.54358257,0.00024915,30]
[387297199,1758682241675,-480.0,0.00024994,2]
[387297201,1758682241684,-480.0,0.00024994,2]
[387297203,1758682241694,-481.61882625,0.00024999,2]
[387297205,1758682241704,-3269.52791784,0.00025,5]
[387297207,1758682241714,-480.0,0.00025035,2]
[387297209,1758682241724,-480.0,0.00025035,2]
[387297211,1758682241734,-480.0,0.00025139,2]
[387297213,1758682241744,-158.0,0.000252,2]
[387297214,1758682241756,-278.76808453,0.00025259,3]
[387297216,1758682241767,-413.12810333,0.00025268,2]
[387297218,1758682241779,-480.0,0.00025268,2]
[387297221,1758682241790,-480.0,0.00025309,2]
[387297223,1758682241801,-480.0,0.00025309,2]
[387297224,1758682241813,-480.0,0.00025413,2]
[387297226,1758682241825,-480.0,0.00025542,2]
[387297228,1758682241837,-480.0,0.00025583,2]
[387297230,1758682241849,-480.0,0.00025583,2]
[387297232,1758682241859,-480.0,0.00025687,2]
[387297234,1758682241870,-480.0,0.00025816,2]
[387297236,1758682241887,-480.0,0.00025857,2]
[387297238,1758682241899,-480.0,0.00025857,2]
[387297240,1758682241910,-480.0,0.00025961,2]
[387297242,1758682241920,-5940.95,0.00026006,2]
[387297244,1758682241931,-354.51067311,0.0002609,2]
[387297246,1758682241940,-486.27,0.00026111,10]